[Event "Titled Tuesday Blitz February 07 Early 2023"]
[White "Kopczynski, Michal"]
[Black "Fernandez Garcia, Gumersindo"]
[WhiteFideId "1124200"]
[BlackFideId "24516740"]
[WhiteElo "2225"]
[BlackElo "2160"]
[Result "0-1"]
[Round "10"]
[TimeControl "180+2"]
[Date "2023.02.07"]
[WhiteClock "0:00:04"]
[BlackClock "0:00:23"]

1. e4 {[%clk 0:03:00]}  c5 {[%clk 0:02:56]} 2. d4 {[%clk 0:03:01]}  cxd4 {[%clk 0:02:54]} 3. c3 {[%clk 0:03:01]}  dxc3 {[%clk 0:02:54]} 4. Nxc3 {[%clk 0:03:02]}  e6 {[%clk 0:02:50]} 5. f4 {[%clk 0:03:02]}  Nc6 {[%clk 0:02:50]} 6. Nf3 {[%clk 0:03:03]}  Qc7 {[%clk 0:02:44]} 7. Bd3 {[%clk 0:03:03]}  a6 {[%clk 0:02:42]} 8. O-O {[%clk 0:03:03]}  Bc5+ {[%clk 0:02:41]} 9. Kh1 {[%clk 0:03:04]}  Nf6 {[%clk 0:02:41]} 10. Qe1 {[%clk 0:03:04]}  d6 {[%clk 0:02:38]} 11. Bd2 {[%clk 0:03:01]}  e5 {[%clk 0:02:30]} 12. Rc1 {[%clk 0:02:58]}  Qe7 {[%clk 0:02:24]} 13. Nd5 {[%clk 0:02:45]}  Nxd5 {[%clk 0:02:22]} 14. exd5 {[%clk 0:02:46]}  Nd4 {[%clk 0:02:21]} 15. fxe5 {[%clk 0:02:35]}  Nxf3 {[%clk 0:02:08]} 16. Rxf3 {[%clk 0:02:35]}  O-O {[%clk 0:02:03]} 17. Qe4 {[%clk 0:01:58]}  f5 {[%clk 0:01:55]} 18. exf6 {[%clk 0:01:49]}  Qxe4 {[%clk 0:01:54]} 19. Bxe4 {[%clk 0:01:48]}  Rxf6 {[%clk 0:01:54]} 20. Rxf6 {[%clk 0:01:43]}  gxf6 {[%clk 0:01:55]} 21. b4 {[%clk 0:01:27]}  Bb6 {[%clk 0:01:52]} 22. Bc3 {[%clk 0:01:28]}  f5 {[%clk 0:01:49]} 23. Bd3 {[%clk 0:01:18]}  Bd7 {[%clk 0:01:48]} 24. Re1 {[%clk 0:01:17]}  Rc8 {[%clk 0:01:41]} 25. Bf6 {[%clk 0:01:17]}  Kf7 {[%clk 0:01:31]} 26. Bg5 {[%clk 0:01:12]}  Re8 {[%clk 0:01:15]} 27. Rxe8 {[%clk 0:01:02]}  Kxe8 {[%clk 0:01:16]} 28. Bf4 {[%clk 0:01:01]}  Ke7 {[%clk 0:01:16]} 29. g3 {[%clk 0:00:51]}  Bd4 {[%clk 0:01:15]} 30. Kg2 {[%clk 0:00:48]}  Bc3 {[%clk 0:01:15]} 31. a3 {[%clk 0:00:47]}  Bb2 {[%clk 0:01:15]} 32. Bg5+ {[%clk 0:00:43]}  Kf7 {[%clk 0:01:12]} 33. Bf4 {[%clk 0:00:43]}  Bxa3 {[%clk 0:01:04]} 34. Bxd6 {[%clk 0:00:42]}  a5 {[%clk 0:01:05]} 35. Kf3 {[%clk 0:00:28]}  axb4 {[%clk 0:01:05]} 36. Bc2 {[%clk 0:00:17]}  Bb5 {[%clk 0:01:00]} 37. Bxf5 {[%clk 0:00:16]}  Bc4 {[%clk 0:00:54]} 38. Be6+ {[%clk 0:00:14]}  Kg6 {[%clk 0:00:54]} 39. Ke4 {[%clk 0:00:15]}  b5 {[%clk 0:00:52]} 40. Bf5+ {[%clk 0:00:15]}  Kg7 {[%clk 0:00:48]} 41. Be5+ {[%clk 0:00:14]}  Kf7 {[%clk 0:00:46]} 42. Bd6 {[%clk 0:00:14]}  Ba2 {[%clk 0:00:44]} 43. Kf3 {[%clk 0:00:10]}  h6 {[%clk 0:00:41]} 44. Bc5 {[%clk 0:00:10]}  Bxd5+ {[%clk 0:00:37]} 45. Kg4 {[%clk 0:00:10]}  Bc4 {[%clk 0:00:28]} 46. Kh5 {[%clk 0:00:08]}  Kf6 {[%clk 0:00:28]} 47. Bd7 {[%clk 0:00:08]}  Be2+ {[%clk 0:00:28]} 48. Kxh6 {[%clk 0:00:08]}  Bc1+ {[%clk 0:00:28]} 49. Kh7 {[%clk 0:00:09]}  b3 {[%clk 0:00:29]} 50. Bd4+ {[%clk 0:00:08]}  Ke7 {[%clk 0:00:29]} 51. Bf5 {[%clk 0:00:08]}  b4 {[%clk 0:00:29]} 52. g4 {[%clk 0:00:08]}  Bd2 {[%clk 0:00:29]} 53. h4 {[%clk 0:00:07]}  Bc3 {[%clk 0:00:29]} 54. Bc5+ {[%clk 0:00:06]}  Kf6 {[%clk 0:00:24]} 55. Bb6 {[%clk 0:00:06]}  Bd1 {[%clk 0:00:24]} 56. Bd8+ {[%clk 0:00:06]}  Kf7 {[%clk 0:00:24]} 57. g5 {[%clk 0:00:05]}  Bc2 {[%clk 0:00:25]} 58. g6+ {[%clk 0:00:06]}  Ke8 {[%clk 0:00:24]} 59. Bxc2 {[%clk 0:00:03]}  bxc2 {[%clk 0:00:24]} 60. Bg5 {[%clk 0:00:03]}  b3 {[%clk 0:00:24]} 61. g7 {[%clk 0:00:04]}  Bxg7 {[%clk 0:00:25]} 62. Kxg7 {[%clk 0:00:05]}  b2 {[%clk 0:00:25]} 63. h5 {[%clk 0:00:04]}  b1=Q {[%clk 0:00:26]} 64. h6 {[%clk 0:00:04]}  Qg1 {[%clk 0:00:25]} 65. Kf6 {[%clk 0:00:02]}  Qxg5+ {[%clk 0:00:24]} 66. Kxg5 {[%clk 0:00:02]}  c1=Q+ {[%clk 0:00:25]} 67. Kg6 {[%clk 0:00:02]}  Kf8 {[%clk 0:00:21]} 68. Kh7 {[%clk 0:00:03]}  Qc7+ {[%clk 0:00:21]} 69. Kh8 {[%clk 0:00:03]}  Qe5+ {[%clk 0:00:21]} 70. Kh7 {[%clk 0:00:03]}  Qe7+ {[%clk 0:00:21]} 71. Kh8 {[%clk 0:00:03]}  Qf6+ {[%clk 0:00:22]} 72. Kh7 {[%clk 0:00:04]}  Qf7+ {[%clk 0:00:22]} 73. Kh8 {[%clk 0:00:04]}  Qg8# {[%clk 0:00:23]} 0-1


[Site "https://www.chess.com"]

[Event "Titled Tuesday Blitz February 07 Early 2023"]
[White "Czopor, Maciej"]
[Black "Foerster-Yialamas, Lucas"]
[WhiteFideId "21805431"]
[BlackFideId "30901774"]
[WhiteElo "2385"]
[BlackElo "2151"]
[Result "1-0"]
[Round "10"]
[TimeControl "180+2"]
[Date "2023.02.07"]
[WhiteClock "0:01:23"]
[BlackClock "0:00:50"]

1. c4 {[%clk 0:03:00]}  g6 {[%clk 0:02:58]} 2. Nc3 {[%clk 0:02:59]}  Nf6 {[%clk 0:02:55]} 3. e4 {[%clk 0:02:57]}  e5 {[%clk 0:02:55]} 4. g3 {[%clk 0:02:55]}  Nc6 {[%clk 0:02:54]} 5. d3 {[%clk 0:02:55]}  Bc5 {[%clk 0:02:51]} 6. h3 {[%clk 0:02:54]}  O-O {[%clk 0:02:49]} 7. Bg2 {[%clk 0:02:55]}  a6 {[%clk 0:02:48]} 8. Nge2 {[%clk 0:02:55]}  d6 {[%clk 0:02:47]} 9. O-O {[%clk 0:02:55]}  Be6 {[%clk 0:02:47]} 10. Kh2 {[%clk 0:02:54]}  Nd7 {[%clk 0:02:47]} 11. Bh6 {[%clk 0:02:50]}  Re8 {[%clk 0:02:43]} 12. f4 {[%clk 0:02:50]}  f5 {[%clk 0:02:43]} 13. Nd5 {[%clk 0:02:45]}  Nf6 {[%clk 0:02:37]} 14. Bg5 {[%clk 0:02:38]}  Bxd5 {[%clk 0:02:36]} 15. cxd5 {[%clk 0:02:39]}  Nd4 {[%clk 0:02:37]} 16. fxe5 {[%clk 0:02:33]}  dxe5 {[%clk 0:02:32]} 17. Nxd4 {[%clk 0:02:31]}  Bxd4 {[%clk 0:02:27]} 18. exf5 {[%clk 0:02:31]}  gxf5 {[%clk 0:02:00]} 19. Rxf5 {[%clk 0:02:28]}  Rf8 {[%clk 0:02:01]} 20. Qf3 {[%clk 0:02:18]}  Kg7 {[%clk 0:01:55]} 21. Rf1 {[%clk 0:02:14]}  e4 {[%clk 0:01:06]} 22. dxe4 {[%clk 0:02:15]}  Qe7 {[%clk 0:01:03]} 23. Qf4 {[%clk 0:01:34]}  Rae8 {[%clk 0:00:56]} 24. Bh6+ {[%clk 0:01:31]}  Kh8 {[%clk 0:00:53]} 25. Bxf8 {[%clk 0:01:28]}  Rxf8 {[%clk 0:00:54]} 26. e5 {[%clk 0:01:27]}  Bxb2 {[%clk 0:00:52]} 27. Rxf6 {[%clk 0:01:24]}  Rxf6 {[%clk 0:00:51]} 28. Qxf6+ {[%clk 0:01:24]}  Qxf6 {[%clk 0:00:50]} 29. exf6 {[%clk 0:01:25]}  Kg8 {[%clk 0:00:51]} 30. Rb1 {[%clk 0:01:23]}  Bxf6 {[%clk 0:00:49]} 31. Rxb7 {[%clk 0:01:24]}  Be5 {[%clk 0:00:50]} 32. Ra7 {[%clk 0:01:23]} 1-0


[Site "https://www.chess.com"]

[Event "Titled Tuesday Blitz February 07 Early 2023"]
[White "Przybylski, Wojciech"]
[Black "Skliarov, Viktor"]
[WhiteFideId "1117599"]
[BlackFideId "14106736"]
[WhiteElo "2321"]
[BlackElo "2383"]
[Result "0-1"]
[Round "10"]
[TimeControl "180+2"]
[Date "2023.02.07"]
[WhiteClock "0:00:06"]
[BlackClock "0:00:38"]

1. e4 {[%clk 0:02:56]}  c5 {[%clk 0:02:59]} 2. Nf3 {[%clk 0:02:56]}  Nc6 {[%clk 0:03:00]} 3. d4 {[%clk 0:02:55]}  cxd4 {[%clk 0:03:00]} 4. Nxd4 {[%clk 0:02:56]}  Nf6 {[%clk 0:03:00]} 5. Nc3 {[%clk 0:02:56]}  e5 {[%clk 0:03:00]} 6. Ndb5 {[%clk 0:02:48]}  d6 {[%clk 0:03:00]} 7. Bg5 {[%clk 0:02:47]}  a6 {[%clk 0:03:01]} 8. Na3 {[%clk 0:02:47]}  b5 {[%clk 0:03:02]} 9. Nd5 {[%clk 0:02:47]}  Be7 {[%clk 0:03:02]} 10. Bxf6 {[%clk 0:02:47]}  Bxf6 {[%clk 0:03:03]} 11. c3 {[%clk 0:02:48]}  Ne7 {[%clk 0:03:03]} 12. Nxf6+ {[%clk 0:02:47]}  gxf6 {[%clk 0:03:02]} 13. Nc2 {[%clk 0:02:47]}  Bb7 {[%clk 0:03:02]} 14. Bd3 {[%clk 0:02:45]}  d5 {[%clk 0:03:01]} 15. exd5 {[%clk 0:02:46]}  Qxd5 {[%clk 0:02:59]} 16. Ne3 {[%clk 0:02:46]}  Qe6 {[%clk 0:02:58]} 17. a4 {[%clk 0:02:45]}  bxa4 {[%clk 0:02:53]} 18. Qxa4+ {[%clk 0:02:42]}  Kf8 {[%clk 0:02:45]} 19. Qb4 {[%clk 0:01:57]}  Bc8 {[%clk 0:02:11]} 20. Be4 {[%clk 0:01:51]}  Ra7 {[%clk 0:02:08]} 21. Rd1 {[%clk 0:01:01]}  Rd7 {[%clk 0:01:45]} 22. Rxd7 {[%clk 0:00:48]}  Qxd7 {[%clk 0:01:45]} 23. O-O {[%clk 0:00:45]}  Kg7 {[%clk 0:01:44]} 24. Rd1 {[%clk 0:00:43]}  Qc7 {[%clk 0:01:44]} 25. Qd6 {[%clk 0:00:36]}  Qxd6 {[%clk 0:01:25]} 26. Rxd6 {[%clk 0:00:35]}  f5 {[%clk 0:01:26]} 27. Bd3 {[%clk 0:00:29]}  f4 {[%clk 0:01:26]} 28. Nc4 {[%clk 0:00:26]}  f6 {[%clk 0:01:26]} 29. Nb6 {[%clk 0:00:24]}  a5 {[%clk 0:01:17]} 30. g3 {[%clk 0:00:14]}  fxg3 {[%clk 0:01:12]} 31. hxg3 {[%clk 0:00:14]}  Bf5 {[%clk 0:01:09]} 32. Bxf5 {[%clk 0:00:11]}  Nxf5 {[%clk 0:01:10]} 33. Rd7+ {[%clk 0:00:05]}  Kg6 {[%clk 0:01:10]} 34. Nd5 {[%clk 0:00:04]}  Rb8 {[%clk 0:01:06]} 35. b4 {[%clk 0:00:05]}  axb4 {[%clk 0:01:06]} 36. cxb4 {[%clk 0:00:06]}  Nd4 {[%clk 0:01:04]} 37. Rd6 {[%clk 0:00:05]}  Nc2 {[%clk 0:00:41]} 38. Rxf6+ {[%clk 0:00:03]}  Kg7 {[%clk 0:00:41]} 39. Re6 {[%clk 0:00:04]}  Nxb4 {[%clk 0:00:39]} 40. Nxb4 {[%clk 0:00:03]}  Rxb4 {[%clk 0:00:38]} 41. Rxe5 {[%clk 0:00:03]}  Rb2 {[%clk 0:00:38]} 42. Kg2 {[%clk 0:00:03]}  Kg6 {[%clk 0:00:39]} 43. Re4 {[%clk 0:00:03]}  Ra2 {[%clk 0:00:39]} 44. Rf4 {[%clk 0:00:04]}  Rb2 {[%clk 0:00:39]} 45. Rf3 {[%clk 0:00:04]}  Ra2 {[%clk 0:00:40]} 46. Rf8 {[%clk 0:00:04]}  Rb2 {[%clk 0:00:40]} 47. Rf4 {[%clk 0:00:04]}  Ra2 {[%clk 0:00:41]} 48. Kh3 {[%clk 0:00:05]}  Rb2 {[%clk 0:00:41]} 49. f3 {[%clk 0:00:05]}  Ra2 {[%clk 0:00:41]} 50. Kg4 {[%clk 0:00:06]}  h5+ {[%clk 0:00:39]} 51. Kh4 {[%clk 0:00:06]}  Rh2# {[%clk 0:00:38]} 0-1


[Site "https://www.chess.com"]

[Event "Titled Tuesday Blitz February 07 Early 2023"]
[White "Hirneise, Jens"]
[Black "Sai Han Thiha"]
[WhiteFideId "24614734"]
[BlackFideId "13012290"]
[WhiteElo "2277"]
[BlackElo "2070"]
[Result "1-0"]
[Round "10"]
[TimeControl "180+2"]
[Date "2023.02.07"]
[WhiteClock "0:00:08"]
[BlackClock "0:00:03"]

1. e4 {[%clk 0:03:00]}  c6 {[%clk 0:03:00]} 2. Nf3 {[%clk 0:02:51]}  d5 {[%clk 0:03:01]} 3. exd5 {[%clk 0:02:51]}  cxd5 {[%clk 0:03:01]} 4. Ne5 {[%clk 0:02:52]}  Nc6 {[%clk 0:03:00]} 5. Bb5 {[%clk 0:02:52]}  Bd7 {[%clk 0:03:00]} 6. Bxc6 {[%clk 0:02:51]}  bxc6 {[%clk 0:02:50]} 7. O-O {[%clk 0:02:52]}  e6 {[%clk 0:02:47]} 8. d4 {[%clk 0:02:50]}  Bd6 {[%clk 0:02:39]} 9. f4 {[%clk 0:02:50]}  Nh6 {[%clk 0:02:31]} 10. Nd2 {[%clk 0:02:44]}  O-O {[%clk 0:02:31]} 11. Nb3 {[%clk 0:02:37]}  Be8 {[%clk 0:02:29]} 12. Re1 {[%clk 0:02:21]}  f6 {[%clk 0:02:24]} 13. Nd3 {[%clk 0:02:19]}  Bf7 {[%clk 0:01:57]} 14. Be3 {[%clk 0:02:16]}  Nf5 {[%clk 0:01:48]} 15. Bf2 {[%clk 0:02:16]}  h5 {[%clk 0:01:49]} 16. Nbc5 {[%clk 0:02:13]}  Re8 {[%clk 0:01:48]} 17. b4 {[%clk 0:02:08]}  Qc7 {[%clk 0:01:40]} 18. g3 {[%clk 0:02:07]}  a5 {[%clk 0:01:39]} 19. a3 {[%clk 0:02:07]}  Bf8 {[%clk 0:01:26]} 20. Qd2 {[%clk 0:02:01]}  Nd6 {[%clk 0:01:22]} 21. Qc3 {[%clk 0:01:48]}  Nc4 {[%clk 0:00:59]} 22. Nb2 {[%clk 0:01:44]}  axb4 {[%clk 0:00:44]} 23. axb4 {[%clk 0:01:43]}  Rxa1 {[%clk 0:00:45]} 24. Rxa1 {[%clk 0:01:42]}  Nxb2 {[%clk 0:00:45]} 25. Qxb2 {[%clk 0:01:42]}  e5 {[%clk 0:00:46]} 26. fxe5 {[%clk 0:01:35]}  fxe5 {[%clk 0:00:47]} 27. dxe5 {[%clk 0:01:35]}  Rxe5 {[%clk 0:00:45]} 28. Bd4 {[%clk 0:01:33]}  Re2 {[%clk 0:00:44]} 29. Qc3 {[%clk 0:01:27]}  Qc8 {[%clk 0:00:36]} 30. Qf3 {[%clk 0:01:24]}  Rxc2 {[%clk 0:00:30]} 31. Rf1 {[%clk 0:01:24]}  Qe8 {[%clk 0:00:25]} 32. Nd3 {[%clk 0:01:18]}  Bd6 {[%clk 0:00:23]} 33. Bxg7 {[%clk 0:01:06]}  Kxg7 {[%clk 0:00:22]} 34. Qf6+ {[%clk 0:01:06]}  Kg8 {[%clk 0:00:21]} 35. Qxd6 {[%clk 0:01:06]}  Qe3+ {[%clk 0:00:19]} 36. Nf2 {[%clk 0:01:01]}  d4 {[%clk 0:00:17]} 37. Qf6 {[%clk 0:00:41]}  Re2 {[%clk 0:00:11]} 38. Rd1 {[%clk 0:00:28]}  Re1+ {[%clk 0:00:09]} 39. Rxe1 {[%clk 0:00:25]}  Qxe1+ {[%clk 0:00:10]} 40. Kg2 {[%clk 0:00:25]}  Bd5+ {[%clk 0:00:10]} 41. Kh3 {[%clk 0:00:24]}  Qe6+ {[%clk 0:00:07]} 42. Qxe6+ {[%clk 0:00:24]}  Bxe6+ {[%clk 0:00:08]} 43. Kh4 {[%clk 0:00:25]}  Bf7 {[%clk 0:00:04]} 44. Kg5 {[%clk 0:00:24]}  Kg7 {[%clk 0:00:04]} 45. Kf4 {[%clk 0:00:23]}  Bg6 {[%clk 0:00:04]} 46. Ke5 {[%clk 0:00:23]}  d3 {[%clk 0:00:02]} 47. Kd4 {[%clk 0:00:20]}  d2 {[%clk 0:00:02]} 48. Kc3 {[%clk 0:00:20]}  d1=Q {[%clk 0:00:01]} 49. Nxd1 {[%clk 0:00:20]}  Kf6 {[%clk 0:00:02]} 50. Ne3 {[%clk 0:00:19]}  Ke5 {[%clk 0:00:02]} 51. Nc4+ {[%clk 0:00:17]}  Ke4 {[%clk 0:00:02]} 52. Na5 {[%clk 0:00:16]}  Be8 {[%clk 0:00:01]} 53. Kc4 {[%clk 0:00:15]}  Kf3 {[%clk 0:00:02]} 54. Kc5 {[%clk 0:00:16]}  Kg2 {[%clk 0:00:03]} 55. Nxc6 {[%clk 0:00:14]}  Kxh2 {[%clk 0:00:03]} 56. b5 {[%clk 0:00:15]}  Bd7 {[%clk 0:00:03]} 57. b6 {[%clk 0:00:13]}  Bc8 {[%clk 0:00:04]} 58. Ne7 {[%clk 0:00:12]}  Bb7 {[%clk 0:00:04]} 59. Nf5 {[%clk 0:00:13]}  Kh3 {[%clk 0:00:04]} 60. Kd6 {[%clk 0:00:11]}  Kg4 {[%clk 0:00:03]} 61. Ke5 {[%clk 0:00:09]}  Bc8 {[%clk 0:00:02]} 62. Ng7 {[%clk 0:00:06]}  Kxg3 {[%clk 0:00:02]} 63. Nxh5+ {[%clk 0:00:06]}  Kf3 {[%clk 0:00:02]} 64. Nf6 {[%clk 0:00:07]}  Bb7 {[%clk 0:00:02]} 65. Kd6 {[%clk 0:00:08]}  Ke3 {[%clk 0:00:02]} 66. Kc7 {[%clk 0:00:08]}  Bf3 {[%clk 0:00:02]} 67. Nd7 {[%clk 0:00:05]}  Kd4 {[%clk 0:00:02]} 68. Nb8 {[%clk 0:00:05]}  Kc5 {[%clk 0:00:03]} 69. Na6+ {[%clk 0:00:03]}  Kb5 {[%clk 0:00:03]} 70. Nb8 {[%clk 0:00:04]}  Kc5 {[%clk 0:00:04]} 71. Nd7+ {[%clk 0:00:03]}  Kb5 {[%clk 0:00:05]} 72. Ne5 {[%clk 0:00:03]}  Be4 {[%clk 0:00:05]} 73. Nf7 {[%clk 0:00:03]}  Kc5 {[%clk 0:00:05]} 74. Nd6 {[%clk 0:00:03]}  Bf3 {[%clk 0:00:05]} 75. Nc8 {[%clk 0:00:04]}  Kb5 {[%clk 0:00:05]} 76. Ne7 {[%clk 0:00:05]}  Kc5 {[%clk 0:00:05]} 77. Nf5 {[%clk 0:00:05]}  Bh1 {[%clk 0:00:03]} 78. Ne3 {[%clk 0:00:06]}  Kb5 {[%clk 0:00:03]} 79. Ng4 {[%clk 0:00:06]}  Bg2 {[%clk 0:00:04]} 80. Nf6 {[%clk 0:00:06]}  Bh1 {[%clk 0:00:04]} 81. Ne8 {[%clk 0:00:07]}  Ka6 {[%clk 0:00:04]} 82. Nd6 {[%clk 0:00:06]}  Bg2 {[%clk 0:00:04]} 83. Nc4 {[%clk 0:00:05]}  Bh1 {[%clk 0:00:04]} 84. Ne5 {[%clk 0:00:06]}  Bg2 {[%clk 0:00:05]} 85. Nc6 {[%clk 0:00:05]}  Kb5 {[%clk 0:00:01]} 86. b7 {[%clk 0:00:06]}  Kc5 {[%clk 0:00:02]} 87. b8=Q {[%clk 0:00:07]}  Bxc6 {[%clk 0:00:02]} 88. Qb6+ {[%clk 0:00:07]}  Kd5 {[%clk 0:00:02]} 89. Qa5+ {[%clk 0:00:07]}  Kd4 {[%clk 0:00:03]} 90. Kxc6 {[%clk 0:00:08]} 1-0


[Site "https://www.chess.com"]

[Event "Titled Tuesday Blitz February 07 Early 2023"]
[White "Ortega Amarelle, Mariano"]
[Black "Abdilkhair, Abilmansur"]
[WhiteFideId "3504301"]
[BlackFideId "13716417"]
[WhiteElo "2472"]
[BlackElo "2268"]
[Result "1-0"]
[Round "10"]
[TimeControl "180+2"]
[Date "2023.02.07"]
[WhiteClock "0:00:03"]
[BlackClock "0:00:50"]

1. e4 {[%clk 0:03:00]}  e5 {[%clk 0:03:00]} 2. Nf3 {[%clk 0:03:00]}  Nc6 {[%clk 0:03:01]} 3. Bb5 {[%clk 0:02:58]}  a6 {[%clk 0:03:01]} 4. Ba4 {[%clk 0:02:58]}  Nf6 {[%clk 0:03:01]} 5. O-O {[%clk 0:02:58]}  b5 {[%clk 0:03:02]} 6. Bb3 {[%clk 0:02:57]}  Be7 {[%clk 0:03:03]} 7. d4 {[%clk 0:02:56]}  d6 {[%clk 0:03:02]} 8. dxe5 {[%clk 0:02:55]}  dxe5 {[%clk 0:03:02]} 9. Qxd8+ {[%clk 0:02:55]}  Bxd8 {[%clk 0:03:03]} 10. a4 {[%clk 0:02:54]}  Bb7 {[%clk 0:02:58]} 11. axb5 {[%clk 0:02:27]}  axb5 {[%clk 0:02:59]} 12. Rxa8 {[%clk 0:02:27]}  Bxa8 {[%clk 0:03:00]} 13. Nc3 {[%clk 0:01:57]}  O-O {[%clk 0:02:54]} 14. Nxb5 {[%clk 0:01:52]}  Nxe4 {[%clk 0:02:53]} 15. Re1 {[%clk 0:01:52]}  Nc5 {[%clk 0:02:53]} 16. Bd5 {[%clk 0:01:46]}  Re8 {[%clk 0:02:37]} 17. Be3 {[%clk 0:01:18]}  Ne6 {[%clk 0:02:27]} 18. Nxe5 {[%clk 0:01:12]}  Nxe5 {[%clk 0:02:24]} 19. Bxa8 {[%clk 0:01:12]}  c6 {[%clk 0:02:19]} 20. Nd6 {[%clk 0:01:10]}  Rf8 {[%clk 0:02:09]} 21. Bb7 {[%clk 0:00:50]}  Bc7 {[%clk 0:02:03]} 22. Nf5 {[%clk 0:00:48]}  Rb8 {[%clk 0:01:57]} 23. Ba6 {[%clk 0:00:25]}  Rxb2 {[%clk 0:01:57]} 24. c3 {[%clk 0:00:17]}  g6 {[%clk 0:01:54]} 25. Nd4 {[%clk 0:00:16]}  Nc5 {[%clk 0:01:47]} 26. Bf1 {[%clk 0:00:15]}  Ng4 {[%clk 0:01:45]} 27. h3 {[%clk 0:00:14]}  Bh2+ {[%clk 0:01:32]} 28. Kh1 {[%clk 0:00:14]}  Nxe3 {[%clk 0:01:32]} 29. Rxe3 {[%clk 0:00:13]}  Bf4 {[%clk 0:01:25]} 30. Re8+ {[%clk 0:00:13]}  Kg7 {[%clk 0:01:25]} 31. g3 {[%clk 0:00:12]}  Rxf2 {[%clk 0:01:23]} 32. Bg2 {[%clk 0:00:10]}  Bxg3 {[%clk 0:01:21]} 33. Nxc6 {[%clk 0:00:10]}  Rc2 {[%clk 0:01:20]} 34. Bd5 {[%clk 0:00:08]}  Rxc3 {[%clk 0:01:17]} 35. Re7 {[%clk 0:00:08]}  Ne6 {[%clk 0:01:14]} 36. Bxe6 {[%clk 0:00:08]}  Rxc6 {[%clk 0:01:14]} 37. Rxf7+ {[%clk 0:00:08]}  Kh6 {[%clk 0:01:15]} 38. Bd5 {[%clk 0:00:08]}  Rc2 {[%clk 0:01:15]} 39. Rd7 {[%clk 0:00:07]}  Rd2 {[%clk 0:01:14]} 40. Bc6 {[%clk 0:00:06]}  Rh2+ {[%clk 0:01:14]} 41. Kg1 {[%clk 0:00:06]}  Rxh3 {[%clk 0:01:14]} 42. Kg2 {[%clk 0:00:07]}  Rh2+ {[%clk 0:01:09]} 43. Kxg3 {[%clk 0:00:07]}  Rc2 {[%clk 0:01:10]} 44. Bf3 {[%clk 0:00:07]}  Rc3 {[%clk 0:01:10]} 45. Kg4 {[%clk 0:00:07]}  Rc4+ {[%clk 0:01:10]} 46. Kg3 {[%clk 0:00:06]}  Rc3 {[%clk 0:01:10]} 47. Kf4 {[%clk 0:00:07]}  Ra3 {[%clk 0:01:08]} 48. Be4 {[%clk 0:00:07]}  Ra4 {[%clk 0:01:08]} 49. Ke5 {[%clk 0:00:06]}  Ra5+ {[%clk 0:01:08]} 50. Bd5 {[%clk 0:00:06]}  Ra1 {[%clk 0:01:07]} 51. Be4 {[%clk 0:00:05]}  Re1 {[%clk 0:01:06]} 52. Ra7 {[%clk 0:00:04]}  Re2 {[%clk 0:01:05]} 53. Ra1 {[%clk 0:00:02]}  Kg7 {[%clk 0:01:02]} 54. Rh1 {[%clk 0:00:03]}  h6 {[%clk 0:01:01]} 55. Rg1 {[%clk 0:00:03]}  g5 {[%clk 0:01:01]} 56. Ra1 {[%clk 0:00:04]}  h5 {[%clk 0:00:58]} 57. Ra7+ {[%clk 0:00:04]}  Kg8 {[%clk 0:00:57]} 58. Kf5 {[%clk 0:00:04]}  g4 {[%clk 0:00:57]} 59. Bd5+ {[%clk 0:00:04]}  Kh8 {[%clk 0:00:54]} 60. Kg6 {[%clk 0:00:03]}  Re8 {[%clk 0:00:50]} 61. Rh7# {[%clk 0:00:03]} 1-0


[Site "https://www.chess.com"]

[Event "Titled Tuesday Blitz February 07 Early 2023"]
[White "Mazurkiewicz, Michal"]
[Black "Sharafiev, Azat"]
[WhiteFideId "1124943"]
[BlackFideId "4186214"]
[WhiteElo "2145"]
[BlackElo "2427"]
[Result "1-0"]
[Round "10"]
[TimeControl "180+2"]
[Date "2023.02.07"]
[WhiteClock "0:00:09"]
[BlackClock "0:01:27"]

1. e4 {[%clk 0:02:57]}  c5 {[%clk 0:02:33]} 2. Nf3 {[%clk 0:02:52]}  d6 {[%clk 0:02:33]} 3. g3 {[%clk 0:02:52]}  Nc6 {[%clk 0:02:33]} 4. Bg2 {[%clk 0:02:52]}  e5 {[%clk 0:02:33]} 5. O-O {[%clk 0:02:52]}  Bg4 {[%clk 0:02:34]} 6. d3 {[%clk 0:02:52]}  Be7 {[%clk 0:02:34]} 7. h3 {[%clk 0:02:52]}  Bh5 {[%clk 0:02:35]} 8. Nc3 {[%clk 0:02:51]}  Nf6 {[%clk 0:02:34]} 9. g4 {[%clk 0:02:48]}  Bg6 {[%clk 0:02:34]} 10. Nd5 {[%clk 0:02:47]}  Nxd5 {[%clk 0:02:33]} 11. exd5 {[%clk 0:02:48]}  Nd4 {[%clk 0:02:34]} 12. Nxd4 {[%clk 0:02:41]}  cxd4 {[%clk 0:02:34]} 13. f4 {[%clk 0:02:41]}  exf4 {[%clk 0:02:33]} 14. Bxf4 {[%clk 0:02:42]}  O-O {[%clk 0:02:33]} 15. Qf3 {[%clk 0:02:32]}  f5 {[%clk 0:02:23]} 16. Qg3 {[%clk 0:02:14]}  fxg4 {[%clk 0:02:20]} 17. hxg4 {[%clk 0:02:03]}  Bh4 {[%clk 0:02:16]} 18. Qh2 {[%clk 0:02:00]}  Bg5 {[%clk 0:02:16]} 19. Bxd6 {[%clk 0:01:56]}  Be3+ {[%clk 0:02:16]} 20. Kh1 {[%clk 0:01:57]}  Rxf1+ {[%clk 0:02:10]} 21. Rxf1 {[%clk 0:01:57]}  Qg5 {[%clk 0:02:07]} 22. Bf3 {[%clk 0:00:31]}  h6 {[%clk 0:02:03]} 23. Bg3 {[%clk 0:00:28]}  Rf8 {[%clk 0:01:57]} 24. Bh4 {[%clk 0:00:19]}  Qf4 {[%clk 0:01:57]} 25. Qxf4 {[%clk 0:00:19]}  Rxf4 {[%clk 0:01:54]} 26. Bg3 {[%clk 0:00:17]}  Rf7 {[%clk 0:01:52]} 27. d6 {[%clk 0:00:17]}  Kh7 {[%clk 0:01:48]} 28. Kg2 {[%clk 0:00:17]}  b6 {[%clk 0:01:43]} 29. Bd5 {[%clk 0:00:17]}  Rd7 {[%clk 0:01:43]} 30. Be6 {[%clk 0:00:17]}  Rd8 {[%clk 0:01:43]} 31. d7 {[%clk 0:00:17]}  Bg5 {[%clk 0:01:42]} 32. Bc7 {[%clk 0:00:16]}  Rh8 {[%clk 0:01:38]} 33. Re1 {[%clk 0:00:08]}  Ra8 {[%clk 0:01:37]} 34. Bf5 {[%clk 0:00:08]}  Bxf5 {[%clk 0:01:37]} 35. gxf5 {[%clk 0:00:09]}  a5 {[%clk 0:01:27]} 36. Re8 {[%clk 0:00:09]}  Ra7 {[%clk 0:01:28]} 37. d8=Q {[%clk 0:00:08]}  Bxd8 {[%clk 0:01:28]} 38. Bxd8 {[%clk 0:00:09]}  Rf7 {[%clk 0:01:28]} 39. f6 {[%clk 0:00:08]}  gxf6 {[%clk 0:01:26]} 40. Re7 {[%clk 0:00:09]}  Rxe7 {[%clk 0:01:25]} 41. Bxe7 {[%clk 0:00:10]}  Kg6 {[%clk 0:01:25]} 42. Bd8 {[%clk 0:00:10]}  a4 {[%clk 0:01:26]} 43. Bxb6 {[%clk 0:00:10]}  f5 {[%clk 0:01:25]} 44. Bxd4 {[%clk 0:00:10]}  h5 {[%clk 0:01:26]} 45. c4 {[%clk 0:00:09]}  Kg5 {[%clk 0:01:26]} 46. Be5 {[%clk 0:00:09]}  Kg4 {[%clk 0:01:25]} 47. c5 {[%clk 0:00:09]}  f4 {[%clk 0:01:26]} 48. c6 {[%clk 0:00:09]}  f3+ {[%clk 0:01:26]} 49. Kf2 {[%clk 0:00:09]}  h4 {[%clk 0:01:27]} 50. c7 {[%clk 0:00:09]} 1-0


[Site "https://www.chess.com"]

[Event "Titled Tuesday Blitz February 07 Early 2023"]
[White "Malka, Samuel"]
[Black "Gutkin, Ilya"]
[WhiteFideId "20643675"]
[BlackFideId "16203470"]
[WhiteElo "2165"]
[BlackElo "2273"]
[Result "1-0"]
[Round "10"]
[TimeControl "180+2"]
[Date "2023.02.07"]
[WhiteClock "0:01:58"]
[BlackClock "0:01:48"]

1. d4 {[%clk 0:03:00]}  e6 {[%clk 0:02:59]} 2. c4 {[%clk 0:03:00]}  Bb4+ {[%clk 0:02:59]} 3. Nd2 {[%clk 0:02:58]}  Nf6 {[%clk 0:02:58]} 4. Nf3 {[%clk 0:02:58]}  O-O {[%clk 0:02:58]} 5. a3 {[%clk 0:02:57]}  Be7 {[%clk 0:02:59]} 6. e4 {[%clk 0:02:56]}  d6 {[%clk 0:02:59]} 7. Be2 {[%clk 0:02:55]}  Nfd7 {[%clk 0:02:59]} 8. b4 {[%clk 0:02:53]}  a5 {[%clk 0:02:59]} 9. Bb2 {[%clk 0:02:53]}  e5 {[%clk 0:02:59]} 10. d5 {[%clk 0:02:53]}  f5 {[%clk 0:02:54]} 11. exf5 {[%clk 0:02:52]}  Nf6 {[%clk 0:02:46]} 12. Bd3 {[%clk 0:02:49]}  Nh5 {[%clk 0:02:42]} 13. g3 {[%clk 0:02:40]}  Na6 {[%clk 0:02:28]} 14. Bc3 {[%clk 0:02:32]}  Bf6 {[%clk 0:02:17]} 15. Qb1 {[%clk 0:02:18]}  e4 {[%clk 0:01:54]} 16. Bxf6 {[%clk 0:01:59]}  exd3 {[%clk 0:01:48]} 17. Bxd8 {[%clk 0:01:58]} 1-0


[Site "https://www.chess.com"]